fUST/lending_fUST_20251010
["ID","MTS","AMOUNT","RATE_DAILY","PERIOD"]
[390535059,1760077362770,1000.0,0.00028493,120]
[390535060,1760077363016,1000.0,0.00028493,120]
[390535061,1760077363262,1000.0,0.00028493,120]
[390535062,1760077363616,1000.0,0.00028493,120]
[390535063,1760077363855,1000.0,0.00028493,120]
[390535064,1760077364101,1000.0,0.00028493,120]
[390535065,1760077364336,1000.0,0.00028493,120]
[390535066,1760077364903,1000.0,0.00028493,120]
[390535067,1760077365140,1000.0,0.00028493,120]
[390535068,1760077365383,415.87952028,0.00028493,120]
[390535069,1760077368936,231.0,0.0002199,120]
[390535070,1760077369341,231.0,0.0002198,120]
[390535071,1760077369790,231.0,0.0002197,120]
[390535072,1760077370234,231.0,0.0002289,120]
[390535073,1760077370687,231.0,0.0002288,120]
[390535074,1760077371119,231.0,0.0002287,120]
[390535075,1760077371550,231.0,0.0002479,120]
[390535076,1760077372020,231.0,0.0002478,120]
[390535077,1760077372471,231.0,0.0002539,120]
[390535078,1760077372920,237.62,0.0002538,120]
[390535079,1760077381169,5000.0,0.0001652,14]
[390535080,1760077410525,200.0,0.00028316,120]
[390535081,1760077411409,180.079414,0.00024,30]
[390535082,1760077411828,180.079414,0.00024,30]
[390535083,1760077412257,180.079414,0.00024,30]
[390535084,1760077412810,180.079414,0.00024,30]
[390535085,1760077413264,180.079414,0.00024,30]
[390535086,1760077415406,180.079414,0.00018975,20]
[390535087,1760077419054,1883.9081238,0.00015,3]
[390535088,1760077419078,10000.01,0.00015,3]
[390535089,1760077419102,10000.01,0.00015,3]
[390535090,1760077419124,10000.01,0.00015,3]
[390535091,1760077419147,10000.01,0.00015,3]
[390535092,1760077419170,10000.01,0.00015,3]
[390535093,1760077419193,10000.01,0.00015,3]
[390535094,1760077419215,10000.01,0.00015,3]
[390535095,1760077419239,10000.01,0.00015,3]
[390535096,1760077419262,5447.77008607,0.00015,3]
[390535097,1760077422272,154.882853,0.00024,30]
[390535098,1760077422740,154.882853,0.00024,30]
[390535099,1760077423795,154.882853,0.00024,30]
[390535102,1760077471260,200.0,0.00028583,120]
[390535104,1760077536828,277.0,0.00027686,120]
[390535105,1760077566024,200.0,0.00024,120]
[390535107,1760077586420,200.0,0.000296,120]
[390535108,1760077586649,201.1,0.00024,120]
[390535109,1760077605198,3337.43503662,0.0001652,14]
[390535110,1760077609096,1406.13,0.000296,120]
[390535111,1760077617384,2756.906,0.00028767,120]
[390535112,1760077646776,1000.0,0.00027397,120]
[390535113,1760077658878,282.10981481,0.000296,120]
[390535114,1760077663045,2493.3168553,0.0002876,120]
[390535115,1760077663079,1007.02,0.00028493,120]
[390535116,1760077663360,1007.02,0.0002852,120]
[390535117,1760077663530,1007.02,0.00028547,120]
[390535118,1760077663793,1007.02,0.00028575,120]
[390535119,1760077664042,1007.02,0.00028602,120]
[390535120,1760077664323,1007.02,0.0002863,120]
[390535121,1760077664559,1007.02,0.00028657,120]
[390535122,1760077664790,1007.02,0.00028684,120]
[390535123,1760077665027,1007.02,0.00028712,120]
[390535124,1760077665264,1007.02,0.00028739,120]
[390535125,1760077665512,1007.02,0.00028767,120]
[390535140,1760077671870,256.12769181,0.00025,120]
[390535141,1760077675318,2684.57644091,0.000296,60]
[390535142,1760077679150,868.89715668,0.0002876,120]
[390535143,1760077680094,419.94449485,0.000248,120]
[390535144,1760077682370,2500.0,0.000287,120]
[390535145,1760077684644,1491.56754924,0.000296,120]
[390535146,1760077685154,988.20985853,0.000296,120]
[390535147,1760077687339,2718.8378801,0.000296,60]
[390535148,1760077691147,326.78646333,0.000296,60]
[390535149,1760077692918,1457.98253995,0.000296,120]
[390535150,1760077693275,938.37791236,0.000296,120]
[390535151,1760077694826,339.86984052,0.00028767,120]
[390535152,1760077696340,801.75600974,0.000296,120]
[390535153,1760077696594,999.999987,0.000296,120]
[390535154,1760077698790,911.89022687,0.000296,60]
[390535155,1760077700581,865.52901918,0.000296,120]
[390535156,1760077701374,905.71018637,0.000296,120]
[390535157,1760077701527,707.67030817,0.000296,120]
[390535158,1760077702594,240.82074905,0.000296,120]
[390535159,1760077702927,1630.40846774,0.00026,120]
[390535160,1760077703769,248.08616964,0.000296,120]
[390535161,1760077704041,634.88033223,0.0002,120]
[390535162,1760077704826,2399.9636195,0.000296,60]
[390535163,1760077704996,2913.85082187,0.000296,120]
[390535164,1760077705063,2000.0,0.000296,120]
[390535165,1760077705459,3135.12634059,0.000296,120]
[390535166,1760077705606,346.79283828,0.000296,120]
[390535167,1760077705755,1127.95446547,0.000296,120]
[390535168,1760077706239,607.96082299,0.00024108,120]
[390535169,1760077706399,390.502831,0.00025,120]
[390535170,1760077707120,2666.2652935,0.000296,120]
[390535171,1760077707260,567.98305879,0.000296,120]
[390535172,1760077707479,2175.13513619,0.000296,60]
[390535173,1760077707619,162.00178741,0.00028,120]
[390535174,1760077707658,177.96182088,0.000296,120]
[390535175,1760077707883,379.07793596,0.000296,120]
[390535176,1760077708318,1032.25269426,0.000296,120]
[390535177,1760077708531,1468.73966011,0.000296,120]
[390535178,1760077708631,904.33633045,0.000296,120]
[390535179,1760077708723,1122.74900774,0.00028767,120]
[390535180,1760077708756,1539.50290376,0.000296,120]
[390535181,1760077708817,1013.11254286,0.00025,120]
[390535182,1760077708910,1693.72374985,0.000296,120]
[390535183,1760077709097,1888.58183005,0.000296,60]
[390535184,1760077709197,1601.90209772,0.000296,120]
[390535185,1760077709422,207.27442549,0.00027,120]
[390535186,1760077709860,436.96513163,0.000296,120]
[390535187,1760077709909,221.17485602,0.000296,120]
[390535188,1760077709952,319.64638654,0.000296,120]
[390535189,1760077710461,2040.0714364,0.00027,120]
[390535190,1760077710600,3114.62042754,0.000296,120]
[390535191,1760077711053,739.9171109,0.000296,120]
[390535192,1760077711093,324.70372877,0.000296,120]
[390535193,1760077711513,2070.72485998,0.00024,120]
[390535194,1760077711708,1903.87426873,0.00018,120]
[390535195,1760077711897,1420.38891321,0.000296,60]
[390535196,1760077711938,558.00165059,0.000296,120]
[390535197,1760077711969,1732.06884908,0.00028767,120]
[390535198,1760077712031,569.61197422,0.000296,60]
[390535199,1760077712121,210.69984,0.00025,120]
[390535200,1760077712255,293.46151401,0.00027397,120]
[390535201,1760077712489,166.52351325,0.000296,120]
[390535202,1760077712522,224.18416336,0.0001536,120]
[390535203,1760077713084,545.27772691,0.000296,120]
[390535204,1760077713120,514.99414002,0.00025,120]
[390535205,1760077713433,2032.83199284,0.000296,120]
[390535206,1760077713506,1203.62836076,0.000296,120]
[390535207,1760077713548,1959.47188327,0.000249,120]
[390535208,1760077713621,1034.57331285,0.000296,120]
[390535209,1760077713858,224.73724748,0.000296,120]
[390535210,1760077714232,2676.36469325,0.00027,120]
[390535211,1760077714573,1254.60367922,0.000296,120]
[390535212,1760077714663,718.87299089,0.00026,120]
[390535213,1760077714789,368.80991012,0.00026,120]
[390535214,1760077714945,2642.0,0.000296,120]
[390535215,1760077715121,429.89740819,0.00025,120]
[390535216,1760077715274,1130.89137901,0.000286,120]
[390535217,1760077715366,3249.2319098,0.000296,120]
[390535218,1760077715548,250.24980377,0.000296,120]
[390535219,1760077715592,1192.23617294,0.00027,120]
[390535220,1760077715930,352.57935209,0.000296,120]
[390535221,1760077715972,2765.15427411,0.00023,120]
[390535222,1760077716061,608.01193331,0.000296,120]
[390535223,1760077716093,1793.30034396,0.000296,120]
[390535224,1760077716210,252.81735629,0.000296,60]
[390535225,1760077716245,1575.66993549,0.000296,120]
[390535226,1760077716382,1017.31411461,0.000296,120]
[390535227,1760077716490,438.05812551,0.000296,120]
[390535228,1760077716691,1009.66872903,0.000296,60]
[390535229,1760077716811,266.82294704,0.000296,120]
[390535230,1760077717464,2396.18348865,0.00028,120]
[390535231,1760077717503,209.89501923,0.00026,120]
[390535232,1760077717536,1000.0,0.000296,120]
[390535233,1760077717572,357.68862997,0.00028,120]
[390535234,1760077717611,191.9401484,0.00028,120]
[390535235,1760077717656,1990.52652489,0.000296,120]
[390535236,1760077717687,1320.36324933,0.000296,120]
[390535237,1760077717718,1013.56904685,0.00028767,120]
[390535238,1760077726412,154.882853,0.0002352,30]
[390535239,1760077727821,154.882853,0.0002304,30]
[390535240,1760077727866,154.882853,0.0002256,30]
[390535241,1760077728382,154.882853,0.00018596,20]
[390535242,1760077728807,154.882853,0.00018267,20]
[390535243,1760077748339,3435.07298933,0.000296,60]
[390535245,1760077783098,154.882853,0.00024,30]
[390535246,1760077783509,154.882853,0.00024,30]
[390535247,1760077803462,300.0,0.00028767,120]
[390535248,1760077830328,5000.0,0.00015571,2]
[390535296,1760077832735,-376.06867859,0.00015829,2]
[390535297,1760077832745,-993.74717197,0.00015989,2]
[390535298,1760077832831,-206.25282803,0.00015989,2]
[390535299,1760077832840,-300.0,0.00015989,2]
[390535300,1760077832850,-511.63210451,0.0001599,2]
[390535303,1760077838658,-16373.33326841,0.0001599,2]
[390535304,1760077838668,-419.93413794,0.00015999,2]
[390535305,1760077838677,-250.0,0.00015999,2]
[390535306,1760077838686,-9000.0,0.00016,4]
[390535307,1760077838695,-344.0,0.00016308,2]
[390535308,1760077838705,-153.4972981,0.00016328,2]
[390535309,1760077838714,-344.0,0.00016423,2]
[390535310,1760077838723,-451.3,0.00016428,3]
[390535311,1760077838733,-16838.70135551,0.00016428,2]
[390539423,1760077884410,200.0,0.00029604,120]
[390540532,1760077971182,187.68967725,0.00029604,120]
[390540535,1760078018619,174.934288,0.00024,30]
[390540536,1760078022844,174.934288,0.00018975,20]
[390540537,1760078034172,193.46241302,0.00023058,120]
[390540542,1760078191388,200.0,0.0002961,120]
[390540543,1760078198195,2009.0,0.0002876,120]
[390540544,1760078209139,1000.0,0.00028493,120]
[390540545,1760078209392,1000.0,0.0002852,120]
[390540546,1760078209642,1000.0,0.00028547,120]
[390540547,1760078209895,1000.0,0.00028575,120]
[390540548,1760078210144,1000.0,0.00028602,120]
[390540549,1760078210590,1000.0,0.0002863,120]
[390540550,1760078210644,1000.0,0.00028657,120]
[390540551,1760078210880,1000.0,0.00028684,120]
[390540552,1760078211128,1000.0,0.00028712,120]
[390540553,1760078211380,1000.0,0.00028739,120]
[390540554,1760078211640,1000.0,0.00028767,120]
[390540555,1760078248189,3000.0,0.0002961,120]
[390540556,1760078402902,300.0,0.00028767,120]
[390540557,1760078449155,222.130627,0.00015399,2]
[390540559,1760078486008,200.0,0.00029615,120]
[390540567,1760078596506,326.7873664,0.00028767,120]
[390540577,1760078610633,164.938043,0.00024,30]
[390540578,1760078611071,164.938043,0.00024,30]
[390540580,1760078611492,164.938043,0.00024,30]
[390540581,1760078611912,164.938043,0.00024,30]
[390540582,1760078612363,164.938043,0.00024,30]
[390540583,1760078615095,164.938043,0.00018975,20]
[390540584,1760078620971,154.882853,0.00024,30]
[390540585,1760078621393,154.882853,0.00024,30]
[390540595,1760078665565,501.0,0.00028767,120]
[390540600,1760078742840,4777.879373,0.000155,2]
[390540601,1760078742861,10000.01,0.000155,2]
[390540602,1760078742882,10000.01,0.000155,2]
[390540603,1760078742905,10000.01,0.000155,2]
[390540604,1760078742926,996.30858873,0.000155,2]
[390540606,1760078785927,200.0,0.00029618,120]
[390540608,1760078854097,-300.0,0.0001587,2]
[390540609,1760078854117,-5000.0,0.00015871,2]
[390540610,1760078854137,-385.93110963,0.00015871,2]
[390540611,1760078854155,-1393.85494852,0.00016014,2]
[390540612,1760078854178,-2608.0,0.00016114,2]
[390540613,1760078854198,-638.50451319,0.00016137,2]
[390540614,1760078854221,-2551.46403472,0.00016137,2]
[390540615,1760078854240,-235.53651904,0.00016304,2]
[390540616,1760078854258,-1388.29475269,0.00016338,2]
[390540617,1760078854277,-171.20339966,0.00016338,2]
[390540618,1760078854298,-2608.0,0.00016376,2]
[390540619,1760078854318,-2030.296672,0.00016428,2]
[390540620,1760078854337,-7721.18544272,0.00016428,2]
[390540621,1760078854356,-312.19471702,0.00016437,2]
[390540622,1760078854374,-177.32947052,0.00016437,2]
[390540623,1760078854394,-313.20007764,0.00016437,2]
[390540624,1760078854413,-942.14607616,0.00016437,2]
[390540625,1760078854446,-509.76719434,0.00016438,2]
[390540626,1760078854468,-505.39857899,0.00016438,2]
[390540627,1760078854488,-500.0,0.00016438,2]
[390540628,1760078854508,-500.0,0.00016438,2]
[390540629,1760078854532,-500.0,0.00016438,2]
[390540630,1760078854552,-500.0,0.00016438,2]
[390540631,1760078854572,-500.0,0.00016438,2]
[390540632,1760078854592,-500.0,0.00016438,2]
[390540633,1760078854610,-500.0,0.00016438,2]
[390540634,1760078854630,-500.0,0.00016438,2]
[390540635,1760078854649,-501.87926337,0.00016438,2]
[390540636,1760078854670,-869.76,0.00016438,2]
[390540637,1760078854690,-683.83,0.00016438,2]
[390540638,1760078854710,-167.00814786,0.00016438,2]
[390540639,1760078854730,-501.81590937,0.00016438,2]
[390540640,1760078854749,-151.0,0.00016438,2]
[390540641,1760078854769,-500.0,0.00016438,2]
[390540642,1760078854788,-500.0,0.00016438,2]
[390540643,1760078854807,-500.0,0.00016438,2]
[390540644,1760078854828,-500.0,0.00016438,2]
[390540645,1760078854848,-281.44631974,0.00016438,2]
[390540646,1760078854868,-500.0,0.00016438,2]
[390540647,1760078854889,-500.0,0.00016438,2]
[390540648,1760078854909,-500.0,0.00016438,2]
[390540649,1760078854929,-500.0,0.00016438,2]
[390540650,1760078854954,-500.0,0.00016438,2]
[390540651,1760078854974,-500.0,0.00016438,2]
[390540652,1760078854997,-500.0,0.00016438,2]
[390540653,1760078855017,-500.0,0.00016438,2]
[390540654,1760078855037,-500.0,0.00016438,2]
[390540655,1760078855057,-500.0,0.00016438,2]
[390540656,1760078855077,-500.0,0.00016438,2]
[390540657,1760078855097,-500.0,0.00016438,2]
[390540658,1760078855119,-500.0,0.00016438,2]
[390540659,1760078855139,-502.97479486,0.00016438,2]
[390540660,1760078855160,-500.66305719,0.00016438,2]
[390540661,1760078855179,-500.0,0.00016438,2]
[390540662,1760078855199,-502.68734328,0.00016438,2]
[390540663,1760078855427,-588.93,0.00016438,2]
[390540664,1760078855452,-502.03919439,0.00016438,2]
[390540665,1760078855470,-500.0,0.00016438,2]
[390540666,1760078855491,-500.0,0.00016438,2]
[390540667,1760078855517,-500.0,0.00016438,2]
[390540668,1760078855537,-500.0,0.00016438,2]
[390540669,1760078855556,-500.0,0.00016438,2]
[390540670,1760078855577,-500.0,0.00016438,2]
[390540671,1760078855597,-507.05,0.00016438,2]
[390540672,1760078855616,-500.0,0.00016438,2]
[390540673,1760078855636,-200.0,0.00016438,2]
[390540674,1760078855655,-500.37695254,0.00016438,2]
[390540675,1760078855673,-500.0,0.00016438,2]
[390540676,1760078855693,-501.75503013,0.00016438,2]
[390540677,1760078855713,-500.0,0.00016438,2]
[390540678,1760078855733,-500.0,0.00016438,2]
[390540679,1760078855754,-500.0,0.00016438,2]
[390540680,1760078855773,-500.0,0.00016438,2]
[390540681,1760078855792,-500.0,0.00016438,2]
[390540682,1760078855811,-481.71365748,0.00016438,2]
[390540683,1760078855829,-500.0,0.00016438,2]
[390540684,1760078855848,-500.0,0.00016438,2]
[390540685,1760078855867,-477.73133279,0.00016438,2]
[390540686,1760078855887,-500.0,0.00016438,2]
[390540687,1760078855906,-500.0,0.00016438,2]
[390540688,1760078855927,-349.14356947,0.00016438,2]
[390540689,1760078855950,-1003.50789963,0.00016438,2]
[390540690,1760078855969,-501.29956999,0.00016438,2]
[390540691,1760078855990,-500.0,0.00016438,2]
[390540692,1760078856009,-500.0,0.00016438,2]
[390540693,1760078856030,-1230.86,0.00016438,2]
[390540694,1760078856050,-500.0,0.00016438,2]
[390540695,1760078856069,-501.93308142,0.00016438,2]
[390540696,1760078856088,-500.61482875,0.00016438,2]
[390540697,1760078856108,-824.62,0.00016438,2]
[390540698,1760078856127,-500.0,0.00016438,2]
[390540699,1760078856147,-500.0,0.00016438,2]
[390540700,1760078856166,-856.22,0.00016438,2]
[390540701,1760078856186,-500.0,0.00016438,2]
[390540702,1760078856205,-500.0,0.00016438,2]
[390540703,1760078856226,-500.0,0.00016438,2]
[390540704,1760078856246,-500.0,0.00016438,2]
[390540705,1760078856266,-500.0,0.00016438,2]
[390540706,1760078856286,-152.56602153,0.00016438,2]
[390540707,1760078856306,-151.0,0.00016438,2]
[390540708,1760078856325,-500.0,0.00016438,2]
[390540709,1760078856344,-565.7,0.00016438,2]
[390540710,1760078856362,-500.0,0.00016438,2]
[390540711,1760078856381,-500.0,0.00016438,2]
[390540712,1760078856401,-500.0,0.00016438,2]
[390540713,1760078856421,-500.0,0.00016438,2]
[390540714,1760078856441,-500.0,0.00016438,2]
[390540715,1760078856460,-500.0,0.00016438,2]
[390540716,1760078856480,-500.0,0.00016438,2]
[390540717,1760078856502,-500.62038344,0.00016438,2]
[390540718,1760078856523,-500.0,0.00016438,2]
[390540719,1760078856543,-501.90278055,0.00016438,2]
[390540720,1760078856568,-500.0,0.00016438,2]
[390540721,1760078856596,-322.9958514,0.00016438,2]
[390540722,1760078856616,-663.44,0.00016438,2]
[390540723,1760078856635,-500.0,0.00016438,2]
[390540724,1760078856654,-500.0,0.00016438,2]
[390540725,1760078856674,-219.55247501,0.00016438,2]
[390540727,1760078871414,1000.0,0.00028493,120]
[390540728,1760078871693,1091.30801498,0.0002852,120]
[390540729,1760078896181,223.538188,0.00015541,2]
[390540767,1760079002713,222.84,0.00028767,120]
[390540819,1760079032145,-890.02271864,0.00016274,2]
[390540936,1760079038955,-4109.97728136,0.00016274,2]
[390540937,1760079038965,-425.69750488,0.00016327,2]
[390540938,1760079038974,-1110.63580216,0.00016338,2]
[390540939,1760079038987,-171.20339965,0.00016338,2]
[390540940,1760079038998,-168.60614602,0.00016428,2]
[390540941,1760079039007,-961.5342607,0.00016432,2]
[390540942,1760079039016,-300.0,0.00016437,2]
[390540943,1760079039027,-280.44752499,0.00016438,2]
[390540944,1760079039036,-500.0,0.00016438,2]
[390540945,1760079039046,-500.47533536,0.00016438,2]
[390540946,1760079039055,-311.52774166,0.00016438,2]
[390540947,1760079039086,-190.0732698,0.00016438,2]
[390540948,1760079039095,-500.0,0.00016438,2]
[390540949,1760079039105,-591.95,0.00016438,2]
[390540950,1760079039114,-500.0,0.00016438,2]
[390540951,1760079039124,-1113.69,0.00016438,2]
[390540952,1760079039133,-500.0,0.00016438,2]
[390540953,1760079039142,-500.0,0.00016438,2]
[390540954,1760079039152,-500.0,0.00016438,2]
[390540955,1760079039161,-500.0,0.00016438,2]
[390540956,1760079039171,-500.0,0.00016438,2]
[390540957,1760079039180,-500.0,0.00016438,2]
[390540958,1760079039190,-500.0,0.00016438,2]
[390540959,1760079039200,-500.0,0.00016438,2]
[390540960,1760079039209,-500.0,0.00016438,2]
[390540961,1760079039219,-500.0,0.00016438,2]
[390540962,1760079039228,-753.46,0.00016438,2]
[390540963,1760079039238,-500.0,0.00016438,2]
[390540964,1760079039247,-500.0,0.00016438,2]
[390540965,1760079039257,-500.0,0.00016438,2]
[390540966,1760079039266,-500.0,0.00016438,2]
[390540967,1760079039275,-500.0,0.00016438,2]
[390540968,1760079039285,-500.0,0.00016438,2]
[390540969,1760079039295,-500.0,0.00016438,2]
[390540970,1760079039305,-500.0,0.00016438,2]
[390540971,1760079039315,-527.5060411,0.00016438,2]
[390540972,1760079039325,-500.0,0.00016438,2]
[390540973,1760079039334,-243.81529387,0.00016438,2]
[390540974,1760079039344,-500.0,0.00016438,2]
[390540975,1760079039355,-500.0,0.00016438,2]
[390540976,1760079039365,-500.0,0.00016438,2]
[390540977,1760079039375,-500.70192007,0.00016438,2]
[390540978,1760079039384,-500.0,0.00016438,2]
[390540980,1760079039394,-488.61603708,0.00016438,2]
[390540981,1760079039404,-500.0,0.00016438,2]
[390540982,1760079039414,-500.0,0.00016438,2]
[390540983,1760079039423,-500.0,0.00016438,2]
[390540984,1760079039432,-500.0,0.00016438,2]
[390540985,1760079039442,-500.0,0.00016438,2]
[390540986,1760079039452,-500.0,0.00016438,2]
[390540987,1760079039462,-500.0,0.00016438,2]
[390540988,1760079039472,-500.0,0.00016438,2]
[390540989,1760079039482,-500.0,0.00016438,2]
[390540990,1760079039491,-500.0,0.00016438,2]
[390540991,1760079039500,-199.27098687,0.00016438,2]
[390540993,1760079039510,-500.0,0.00016438,2]
[390540995,1760079039519,-500.0,0.00016438,2]
[390540997,1760079039529,-500.0,0.00016438,2]
[390540998,1760079039538,-151.0,0.00016438,2]
[390540999,1760079039547,-931.93,0.00016438,2]
[390541000,1760079039556,-500.0,0.00016438,2]
[390541001,1760079039566,-500.0,0.00016438,2]
[390541002,1760079039575,-502.85873749,0.00016438,2]
[390541003,1760079039584,-500.0,0.00016438,2]
[390541004,1760079039594,-500.0,0.00016438,2]
[390541005,1760079039604,-500.0,0.00016438,2]
[390541006,1760079039614,-500.0,0.00016438,2]
[390541007,1760079039623,-500.0,0.00016438,2]
[390541008,1760079039632,-500.0,0.00016438,2]
[390541009,1760079039642,-500.0,0.00016438,2]
[390541010,1760079039652,-500.0,0.00016438,2]
[390541011,1760079039661,-500.0,0.00016438,2]
[390541012,1760079039671,-1071.54,0.00016438,2]
[390541013,1760079039680,-1008.81,0.00016438,2]
[390541014,1760079039691,-500.0,0.00016438,2]
[390541015,1760079039700,-500.0,0.00016438,2]
[390541016,1760079039709,-911.91,0.00016438,2]
[390541017,1760079039719,-500.0,0.00016438,2]
[390541019,1760079039728,-500.0,0.00016438,2]
[390541021,1760079039738,-500.0,0.00016438,2]
[390541022,1760079039747,-164.54126561,0.00016438,2]
[390541024,1760079039756,-500.0,0.00016438,2]
[390541026,1760079039766,-500.0,0.00016438,2]
[390541028,1760079039775,-500.0,0.00016438,2]
[390541030,1760079039784,-500.0,0.00016438,2]
[390541032,1760079039793,-500.0,0.00016438,2]
[390541034,1760079039802,-500.0,0.00016438,2]
[390541036,1760079039811,-500.0,0.00016438,2]
[390541037,1760079039820,-500.0,0.00016438,2]
[390541039,1760079039829,-500.0,0.00016438,2]
[390541041,1760079039838,-510.21595832,0.00016438,2]
[390541043,1760079039848,-500.0,0.00016438,2]
[390541045,1760079039856,-500.0,0.00016438,2]
[390541047,1760079039866,-500.0,0.00016438,2]
[390541049,1760079039875,-500.0,0.00016438,2]
[390541051,1760079039885,-500.0,0.00016438,2]
[390541053,1760079039894,-500.0,0.00016438,2]
[390541055,1760079039903,-500.0,0.00016438,2]
[390541057,1760079039913,-500.0,0.00016438,2]
[390541059,1760079039923,-500.0,0.00016438,2]
[390541061,1760079039933,-500.87475987,0.00016438,2]
[390541063,1760079039942,-500.0,0.00016438,2]
[390541065,1760079039951,-500.0,0.00016438,2]
[390541067,1760079039960,-247.62573965,0.00016438,2]
[390541069,1760079039975,-500.0,0.00016438,2]
[390541071,1760079039988,-500.0,0.00016438,2]
[390541073,1760079039998,-500.0,0.00016438,2]
[390541075,1760079040007,-500.0,0.00016438,2]
[390541077,1760079040016,-503.80566,0.00016438,2]
[390541079,1760079040027,-500.0,0.00016438,2]
[390541081,1760079040036,-1248.6,0.00016438,2]
[390541083,1760079040045,-500.0,0.00016438,2]
[390541085,1760079040056,-500.0,0.00016438,2]
[390541087,1760079040065,-500.0,0.00016438,2]
[390541089,1760079040074,-500.0,0.00016438,2]
[390541091,1760079040084,-970.83,0.00016438,2]
[390541093,1760079040093,-7237.26,0.00016438,2]
[390541095,1760079040103,-500.0,0.00016438,2]
[390541097,1760079040113,-500.0,0.00016438,2]
[390541099,1760079040122,-500.0,0.00016438,2]
[390541101,1760079040131,-423.9287788,0.00016438,2]
[390541103,1760079040140,-500.0,0.00016438,2]
[390541105,1760079040149,-501.49242872,0.00016438,2]
[390541107,1760079040159,-500.0,0.00016438,2]
[390541109,1760079040169,-500.0,0.00016438,2]
[390541111,1760079040179,-500.0,0.00016438,2]
[390541113,1760079040188,-501.2065231,0.00016438,2]
[390541115,1760079040197,-500.0,0.00016438,2]
[390541117,1760079040206,-500.0,0.00016438,2]
[390541119,1760079040215,-500.0,0.00016438,2]
[390541121,1760079040224,-440.26320699,0.00016438,2]
[390541123,1760079040232,-500.0,0.00016438,2]
[390541125,1760079040241,-500.0,0.00016438,2]
[390541127,1760079040250,-500.0,0.00016438,2]
[390541129,1760079040259,-500.0,0.00016438,2]
[390541131,1760079040268,-500.0,0.00016438,2]
[390541133,1760079040278,-585.13614732,0.00016438,2]
[390541135,1760079040287,-558.04567782,0.00016438,2]
[390541137,1760079040296,-500.0,0.00016438,2]
[390541139,1760079040305,-500.0,0.00016438,2]
[390541141,1760079040314,-500.0,0.00016438,2]
[390541143,1760079040323,-502.11849293,0.00016438,2]
[390541145,1760079040332,-500.0,0.00016438,2]
[390541147,1760079040341,-500.0,0.00016438,2]
[390541149,1760079040352,-500.0,0.00016438,2]
[390541151,1760079040360,-500.0,0.00016438,2]
[390541153,1760079040369,-500.0,0.00016438,2]
[390541155,1760079040379,-500.0,0.00016438,2]
[390541156,1760079040388,-500.0,0.00016438,2]
[390541158,1760079040397,-500.0,0.00016438,2]
[390541160,1760079040406,-500.0,0.00016438,2]
[390541163,1760079040416,-500.0,0.00016438,2]
[390541164,1760079040425,-500.0,0.00016438,2]
[390541166,1760079040435,-242.78753328,0.00016438,2]